fUSD/lending_fUSD_20240612
["ID","MTS","AMOUNT","RATE_DAILY","PERIOD"]
[329188841,1718165458090,-753.55,0.00019178,2]
[329188842,1718165458100,-2243.59,0.00019178,2]
[329188843,1718165458110,-2604.29,0.00019178,2]
[329188844,1718165458121,-1369.76,0.00019178,2]
[329188845,1718165458130,-500.0,0.00019178,2]
[329188846,1718165458142,-500.0,0.00019178,2]
[329188847,1718165458155,-500.0,0.00019178,2]
[329188848,1718165458167,-895.05,0.00019178,2]
[329188849,1718165458178,-515.04630765,0.00019178,2]
[329188850,1718165458190,-935.16,0.00019178,2]
[329188851,1718165458200,-508.98953682,0.00019178,2]
[329188852,1718165458210,-378.261335,0.00019178,2]
[329188853,1718165458222,-378.261335,0.00019178,2]
[329188854,1718165458232,-582.43,0.00019178,2]
[329188855,1718165458242,-378.261335,0.00019178,2]
[329188856,1718165458253,-378.261335,0.00019178,2]
[329188857,1718165458263,-597.95,0.00019178,2]
[329188858,1718165458274,-500.0,0.00019178,2]
[329188859,1718165458284,-500.0,0.00019178,2]
[329188860,1718165458295,-4114.16,0.00019178,2]
[329188861,1718165458305,-378.261335,0.00019178,2]
[329188862,1718165458316,-378.261335,0.00019178,2]
[329188863,1718165458326,-500.0,0.00019178,2]
[329188864,1718165458337,-7335.09,0.00019178,2]
[329188865,1718165458347,-1643.42,0.00019178,2]
[329188866,1718165458357,-378.261335,0.00019178,2]
[329188867,1718165458368,-508.21841365,0.00019178,2]
[329188868,1718165458378,-378.261335,0.00019178,2]
[329188869,1718165458388,-500.0,0.00019178,2]
[329188870,1718165458399,-1067.88,0.00019178,2]
[329188871,1718165458409,-599.26,0.00019178,2]
[329188872,1718165458419,-1268.19,0.00019178,2]
[329188873,1718165458429,-500.0,0.00019178,2]
[329188874,1718165458440,-165.35059104,0.00019178,2]
[329188875,1718165458451,-152.785627,0.00019178,2]
[329188876,1718165458461,-4056.85,0.00019178,2]
[329188877,1718165458471,-500.0,0.00019178,2]
[329188878,1718165458481,-403.22959139,0.00019178,2]
[329188879,1718165458548,-96.77040861,0.00019178,2]
[329188880,1718165458559,-399.66957257,0.00019178,2]
[329188881,1718165458569,-409.73359855,0.00019178,2]
[329188882,1718165458587,-1205.37640145,0.00019178,2]
[329188883,1718165458597,-339.77887104,0.00019178,2]
[329188884,1718165458616,-160.22112896,0.00019178,2]
[329188885,1718165458627,-2372.59143938,0.00019178,2]
[329188886,1718165458670,-216.12221467,0.0001735,2]
[329188887,1718165458680,-3302.83856062,0.00019178,2]
[329188888,1718165458690,-972.51,0.00019178,2]
[329188889,1718165458700,-561.06,0.00019178,2]
[329188890,1718165458711,-1150.6,0.00019178,2]
[329188891,1718165458723,-500.0,0.00019178,2]
[329188892,1718165458733,-500.0,0.00019178,2]
[329188893,1718165458744,-500.0,0.00019178,2]
[329188894,1718165458753,-492.8415295,0.00019178,2]
[329188895,1718165458766,-827.12860321,0.00019178,2]
[329188896,1718165458788,-199.34802492,0.00013999,2]
[329188897,1718165458798,-1265.08514509,0.00019178,2]
[329188898,1718165458810,-5730.22504836,0.00019178,2]
[329188899,1718165459492,-151.0,0.00015,2]
[329188900,1718165459502,-151.0,0.0001564,2]
[329188901,1718165459514,-17269.45967384,0.00019178,2]
[329188902,1718165459525,-1048.56,0.00019178,2]
[329188903,1718165459536,-527.66,0.00019178,2]
[329188904,1718165459547,-681.25,0.00019178,2]
[329188905,1718165459558,-500.0,0.00019178,2]
[329188906,1718165459569,-500.0,0.00019178,2]
[329188907,1718165459579,-500.0,0.00019178,2]
[329188908,1718165459590,-1044.64,0.00019178,2]
[329188909,1718165459602,-500.0,0.00019178,2]
[329188910,1718165459613,-779.8,0.00019178,2]
[329188911,1718165459623,-500.0,0.00019178,2]
[329188912,1718165459634,-15713.57,0.00019178,2]
[329188913,1718165459645,-1943.03,0.00019178,2]
[329188914,1718165459660,-514.34569744,0.00019178,2]
[329188915,1718165459670,-500.0,0.00019178,2]
[329188916,1718165459681,-333.20744919,0.00019178,2]
[329188917,1718165459691,-881.6,0.00019178,2]
[329188918,1718165459702,-500.0,0.00019178,2]
[329188919,1718165459712,-464.00274946,0.00019178,2]
[329188920,1718165459723,-562.97,0.00019178,2]
[329188921,1718165459733,-500.0,0.00019178,2]
[329188922,1718165459743,-500.0,0.00019178,2]
[329188923,1718165459753,-1433.93,0.00019178,2]
[329188924,1718165459765,-501.34818781,0.00019178,2]
[329188925,1718165459775,-1637.72,0.00019178,2]
[329188926,1718165459785,-1437.36,0.00019178,2]
[329188927,1718165459795,-500.0,0.00019178,2]
[329188928,1718165459807,-500.0,0.00019178,2]
[329188929,1718165459817,-528.57,0.00019178,2]
[329188930,1718165459827,-500.0,0.00019178,2]
[329188931,1718165459837,-833.25,0.00019178,2]
[329188932,1718165459848,-1373.02,0.00019178,2]
[329188933,1718165459859,-631.8,0.00019178,2]
[329188934,1718165459869,-1702.00518686,0.00019178,2]
[329188935,1718165467741,4761.39790031,0.00010714,2]
[329188936,1718165485767,4039.96474179,0.00010714,2]
[329188938,1718165496297,19779.47425751,0.00010714,2]
[329188969,1718166444189,-203.46657531,0.00013784,2]
[329188970,1718166444225,-300.0,0.00013797,2]
[329188971,1718166444255,-2542.43441576,0.00013798,2]
[329188972,1718166445140,-7.36719703,0.00013798,2]
[329188973,1718166445171,-159.73084833,0.00013798,2]
[329188974,1718166445226,-155.0,0.00013798,2]
[329188975,1718166445255,-155.64076621,0.00013798,2]
[329188976,1718166445288,-2314.63470574,0.00013798,2]
[329188977,1718166445323,-2316.10695744,0.00013799,2]
[329188978,1718166445365,-162227.31615677,0.000138,2]
[329188979,1718166449901,-25262.25650891,0.000138,2]
[329188986,1718166632241,-163.4,0.00013487,2]
[329188987,1718166632254,-7211.0,0.000137,2]
[329188988,1718166632265,-35171.62735168,0.000138,2]
[329188989,1718166632300,-892.30034146,0.000138,2]
[329188990,1718166632342,-7211.0,0.000138,2]
[329188991,1718166632358,-14235.49964118,0.000138,2]
[329188992,1718166632371,-169.7,0.00013852,2]
[329188993,1718166632389,-1050.3891818,0.00015,2]
[329188994,1718166632402,-8100.08828766,0.00015,2]
[329188995,1718166632414,-2487.18140371,0.00015024,2]
[329188996,1718166632427,-703.68,0.00015026,2]
[329188997,1718166632437,-1831.0,0.00015491,2]
[329188998,1718166632448,-1651.0,0.00015491,2]
[329188999,1718166632463,-295.197,0.00015491,2]
[329189000,1718166632477,-447.0,0.00015491,2]
[329189001,1718166632504,-5154.0,0.00015491,2]
[329189002,1718166632514,-5783.0,0.00015491,2]
[329189003,1718166632525,-290.0,0.00015491,2]
[329189004,1718166632545,-156.497,0.00015491,2]
[329189005,1718166632556,-250.0,0.00016858,2]
[329189006,1718166632568,-208.81,0.00016888,2]
[329189007,1718166632585,-1698.79,0.00016902,2]
[329189008,1718166632600,-158.2,0.00016913,2]
[329189009,1718166632613,-23900.0,0.00016922,2]
[329189010,1718166632629,-5679.77,0.00016922,2]
[329189011,1718166632661,-444.41,0.00016922,2]
[329189012,1718166632679,-4796.7,0.00016922,2]
[329189013,1718166632690,-1854.45,0.0001694,2]
[329189015,1718166632700,-163.94,0.00016961,2]
[329189016,1718166632716,-2751.0,0.0001697,2]
[329189017,1718166632737,-1852.42,0.00016972,2]
[329189018,1718166632767,-4626.44,0.00016986,2]
[329189019,1718166632782,-200.0,0.00016995,2]
[329189020,1718166632792,-736.81,0.00017066,2]
[329189021,1718166632803,-254.63,0.00017255,2]
[329189022,1718166632814,-703.68,0.0001729,2]
[329189023,1718166632824,-254.63,0.00017302,2]
[329189024,1718166632838,-250.0,0.00017334,2]
[329189025,1718166632854,-254.63,0.0001735,2]
[329189026,1718166632867,-150.0,0.00017375,2]
[329189027,1718166632882,-254.63,0.00017397,2]
[329189028,1718166632893,-1000.0,0.00017408,2]
[329189029,1718166632908,-1386.43,0.00017408,2]
[329189030,1718166632919,-254.63,0.00017444,2]
[329189031,1718166632930,-176.25,0.00017488,2]
[329189033,1718166632941,-254.63,0.00017492,2]
[329189035,1718166632954,-254.63,0.00017539,2]
[329189037,1718166632966,-254.63,0.00017586,2]
[329189039,1718166632976,-1597.0,0.000176,2]
[329189041,1718166632986,-5378.06,0.000176,6]
[329189043,1718166633000,-619.0,0.000176,2]
[329189045,1718166633014,-254.63,0.00017634,2]
[329189053,1718166633290,-254.63,0.00017681,2]
[329189054,1718166633306,-254.63,0.00017728,2]
[329189055,1718166633327,-158.2,0.00017758,2]
[329189056,1718166633337,-254.63,0.00017775,2]
[329189057,1718166633347,-254.63,0.00017823,2]
[329189058,1718166633366,-308.45,0.00017837,2]
[329189059,1718166633379,-308.45,0.00017841,2]
[329189060,1718166633389,-308.45,0.00017846,2]
[329189061,1718166633399,-308.45,0.00017851,2]
[329189062,1718166633409,-308.45,0.00017855,2]
[329189063,1718166633429,-308.45,0.0001786,2]
[329189064,1718166633441,-308.45,0.00017865,2]
[329189065,1718166633453,-308.45,0.00017869,2]
[329189066,1718166633465,-254.63,0.0001787,2]
[329189067,1718166633476,-308.45,0.00017874,2]
[329189068,1718166633491,-308.45,0.00017879,2]
[329189069,1718166633508,-308.45,0.00017883,2]
[329189070,1718166633518,-308.45,0.00017888,2]
[329189071,1718166633537,-308.45,0.00017893,2]
[329189072,1718166633551,-308.45,0.00017898,2]
[329189073,1718166633564,-308.45,0.00017902,2]
[329189074,1718166633578,-308.45,0.00017907,2]
[329189075,1718166633591,-308.45,0.00017912,2]
[329189076,1718166633604,-308.45,0.00017916,2]
[329189077,1718166633643,-254.63,0.00017917,2]
[329189078,1718166633657,-308.45,0.00017921,2]
[329189079,1718166633670,-308.45,0.00017926,2]
[329189080,1718166633683,-254.63,0.00017965,2]
[329189081,1718166633697,-767.16253188,0.00018,2]
[329189082,1718166633711,-254.63,0.00018012,2]
[329189083,1718166633725,-3657.973,0.00018015,2]
[329189084,1718166633742,-254.63,0.00018059,2]
[329189085,1718166633757,-254.63,0.00018107,2]
[329189086,1718166633769,-254.63,0.00018154,2]
[329189087,1718166633782,-153.702822,0.00018356,2]
[329189088,1718166633793,-1793.859,0.00018491,2]
[329189089,1718166633806,-1651.0,0.00018491,2]
[329189090,1718166633817,-158.5,0.00018492,2]
[329189091,1718166633830,-158.2,0.00018604,2]
[329189092,1718166633841,-851.24,0.0001874,2]
[329189093,1718166633852,-417.62,0.0001874,2]
[329189094,1718166633863,-417.62,0.0001874,2]
[329189095,1718166633874,-851.24,0.0001874,2]
[329189096,1718166633889,-851.24,0.0001874,2]
[329189097,1718166633901,-417.62,0.0001874,2]
[329189098,1718166633912,-851.24,0.0001874,2]
[329189099,1718166633926,-417.62,0.0001874,2]
[329189100,1718166633939,-851.24,0.0001874,2]
[329189101,1718166633957,-417.62,0.0001874,2]
[329189102,1718166633979,-417.62,0.0001874,2]
[329189103,1718166633994,-851.24,0.0001874,2]
[329189104,1718166634006,-417.62,0.0001874,2]
[329189105,1718166634018,-851.24,0.0001874,2]
[329189106,1718166634029,-851.24,0.0001874,2]
[329189107,1718166634040,-201.21,0.0001874,2]
[329189108,1718166634056,-158.5,0.00018965,2]
[329189109,1718166634070,-500.0,0.00019025,2]
[329189110,1718166634081,-200.0,0.00019025,2]
[329189111,1718166634093,-322.60322668,0.00019078,2]
[329189112,1718166634104,-489.0,0.000191,2]
[329189113,1718166634117,-1879.07636043,0.00019173,2]
[329189114,1718166634129,-155.19996367,0.00019174,2]
[329189115,1718166634141,-11242.111213,0.00019175,2]
[329189116,1718166634158,-43699.9241624,0.00019175,2]
[329189117,1718166634168,-18784.1291611,0.00019175,2]
[329189118,1718166634180,-2174.1978783,0.00019175,2]
[329189119,1718166634190,-313.58883507,0.00019176,2]
[329189120,1718166634201,-419.90440699,0.00019176,2]
[329189121,1718166634212,-296.81340302,0.00019176,2]
[329189122,1718166634223,-746.51904229,0.00019176,2]
[329189123,1718166634233,-411.00701246,0.00019176,2]
[329189124,1718166634243,-156.0522927,0.00019177,2]
[329189125,1718166634255,-199.34802492,0.00019177,2]
[329189126,1718166634273,-477.73641664,0.00019178,2]
[329189127,1718166634285,-511.83920345,0.00019178,2]
[329189128,1718166634295,-500.0,0.00019178,2]
[329189129,1718166634305,-500.0,0.00019178,2]
[329189130,1718166634315,-508.27547937,0.00019178,2]
[329189131,1718166634325,-500.0,0.00019178,2]
[329189132,1718166634335,-500.0,0.00019178,2]
[329189133,1718166634346,-508.03088679,0.00019178,2]
[329189134,1718166634356,-505.2278053,0.00019178,2]
[329189135,1718166634370,-293.649204,0.00019178,2]
[329189136,1718166634385,-516.57296447,0.00019178,2]
[329189137,1718166634396,-500.0,0.00019178,2]
[329189138,1718166634407,-500.0,0.00019178,2]
[329189139,1718166634420,-500.0,0.00019178,2]
[329189140,1718166634435,-500.0,0.00019178,2]
[329189141,1718166634446,-500.0,0.00019178,2]
[329189142,1718166634457,-517.16011349,0.00019178,2]
[329189143,1718166634470,-500.0,0.00019178,2]
[329189144,1718166634482,-500.0,0.00019178,2]
[329189145,1718166634496,-508.74685331,0.00019178,2]
[329189146,1718166634510,-509.83671644,0.00019178,2]
[329189147,1718166634525,-509.58261364,0.00019178,2]
[329189148,1718166634537,-500.0,0.00019178,2]
[329189149,1718166634548,-511.75265563,0.00019178,2]
[329189150,1718166634559,-500.0,0.00019178,2]
[329189151,1718166634570,-500.0,0.00019178,2]
[329189152,1718166634581,-500.0,0.00019178,2]
[329189153,1718166634592,-500.0,0.00019178,2]
[329189154,1718166634604,-500.0,0.00019178,2]
[329189155,1718166634615,-500.0,0.00019178,2]
[329189156,1718166634633,-522.0950294,0.00019178,2]
[329189157,1718166634653,-500.0,0.00019178,2]
[329189158,1718166634665,-500.0,0.00019178,2]
[329189159,1718166634675,-522.1788317,0.00019178,2]
[329189160,1718166634688,-164.83279397,0.00019178,2]
[329189161,1718166634700,-500.0,0.00019178,2]
[329189162,1718166634710,-500.0,0.00019178,2]
[329189163,1718166634723,-500.0,0.00019178,2]
[329189164,1718166634734,-500.0,0.00019178,2]
[329189165,1718166634745,-503.87705501,0.00019178,2]
[329189166,1718166634755,-500.0,0.00019178,2]
[329189167,1718166634766,-500.0,0.00019178,2]
[329189168,1718166634782,-500.0,0.00019178,2]
[329189169,1718166634795,-500.0,0.00019178,2]
[329189170,1718166634806,-620.51935028,0.00019178,2]
[329189171,1718166634818,-500.0,0.00019178,2]
[329189172,1718166634830,-500.0,0.00019178,2]
[329189173,1718166634841,-500.0,0.00019178,2]
[329189174,1718166634857,-500.0,0.00019178,2]
[329189175,1718166634869,-500.0,0.00019178,2]
[329189176,1718166634880,-500.0,0.00019178,2]
[329189177,1718166634892,-500.0,0.00019178,2]
[329189178,1718166634906,-500.0,0.00019178,2]
[329189179,1718166634918,-342.57864574,0.00019178,2]
[329189180,1718166634936,-500.0,0.00019178,2]
[329189181,1718166634950,-500.0,0.00019178,2]
[329189182,1718166634965,-500.0,0.00019178,2]
[329189183,1718166634977,-500.0,0.00019178,2]
[329189184,1718166634990,-500.0,0.00019178,2]
[329189185,1718166635008,-500.0,0.00019178,2]
[329189186,1718166635023,-500.0,0.00019178,2]
[329189187,1718166635040,-524.32328915,0.00019178,2]
[329189188,1718166635058,-608.0156687,0.00019178,2]
[329189189,1718166635074,-500.0,0.00019178,2]
[329189190,1718166635089,-500.0,0.00019178,2]
[329189191,1718166635102,-500.0,0.00019178,2]
[329189192,1718166635117,-500.0,0.00019178,2]
[329189193,1718166635134,-500.0,0.00019178,2]
[329189194,1718166635146,-500.0,0.00019178,2]
[329189195,1718166635157,-500.0,0.00019178,2]
[329189196,1718166635169,-779.61,0.00019178,2]
[329189197,1718166635181,-500.0,0.00019178,2]
[329189198,1718166635193,-500.0,0.00019178,2]
[329189199,1718166635205,-500.0,0.00019178,2]
[329189200,1718166635218,-500.0,0.00019178,2]
[329189201,1718166635229,-500.0,0.00019178,2]
[329189202,1718166635242,-500.0,0.00019178,2]
[329189203,1718166635255,-500.0,0.00019178,2]
[329189204,1718166635268,-500.0,0.00019178,2]
[329189205,1718166635281,-500.0,0.00019178,2]
[329189206,1718166635293,-500.0,0.00019178,2]
[329189207,1718166635305,-500.0,0.00019178,2]
[329189208,1718166635318,-500.0,0.00019178,2]
[329189209,1718166635331,-178.53080182,0.00019178,2]
[329189210,1718166635344,-500.0,0.00019178,2]
[329189211,1718166635356,-500.0,0.00019178,2]
[329189212,1718166635367,-500.0,0.00019178,2]
[329189213,1718166635382,-500.0,0.00019178,2]
[329189214,1718166635395,-594.96,0.00019178,2]
[329189215,1718166635408,-500.0,0.00019178,2]
[329189216,1718166635420,-500.0,0.00019178,2]
[329189217,1718166635431,-500.0,0.00019178,2]
[329189218,1718166635444,-500.0,0.00019178,2]
[329189219,1718166635455,-500.0,0.00019178,2]
[329189220,1718166635472,-500.0,0.00019178,2]
[329189221,1718166635487,-700.54,0.00019178,2]
[329189222,1718166635499,-500.0,0.00019178,2]
[329189223,1718166635514,-500.0,0.00019178,2]
[329189224,1718166635528,-459.73768686,0.00019178,2]
[329189225,1718166635549,-500.0,0.00019178,2]
[329189226,1718166635563,-500.0,0.00019178,2]
[329189227,1718166635582,-500.0,0.00019178,2]
[329189228,1718166635598,-500.0,0.00019178,2]
[329189229,1718166635613,-500.0,0.00019178,2]
[329189230,1718166635639,-500.0,0.00019178,2]
[329189231,1718166635675,-500.0,0.00019178,2]
[329189232,1718166635690,-520.50175259,0.00019178,2]
[329189233,1718166635712,-748.55,0.00019178,2]
[329189234,1718166635729,-549.94276327,0.00019178,2]
[329189235,1718166635749,-500.0,0.00019178,2]
[329189236,1718166635762,-500.0,0.00019178,2]
[329189237,1718166635774,-500.0,0.00019178,2]
[329189238,1718166635785,-500.0,0.00019178,2]
[329189239,1718166635797,-500.0,0.00019178,2]
[329189240,1718166635809,-627.82592824,0.00019178,2]
[329189241,1718166635820,-516.37380131,0.00019178,2]
[329189242,1718166635832,-808.76,0.00019178,2]
[329189243,1718166635852,-500.0,0.00019178,2]
[329189244,1718166635863,-500.0,0.00019178,2]
[329189245,1718166635876,-500.0,0.00019178,2]
[329189246,1718166635899,-500.0,0.00019178,2]
[329189247,1718166635914,-500.0,0.00019178,2]
[329189248,1718166635936,-500.0,0.00019178,2]
[329189249,1718166635947,-509.34,0.00019178,2]
[329189250,1718166635957,-500.0,0.00019178,2]
[329189251,1718166635976,-500.0,0.00019178,2]
[329189252,1718166635989,-500.0,0.00019178,2]
[329189253,1718166636003,-500.0,0.00019178,2]
[329189254,1718166636026,-500.0,0.00019178,2]
[329189255,1718166636041,-500.0,0.00019178,2]
[329189256,1718166636060,-500.0,0.00019178,2]
[329189257,1718166636080,-500.0,0.00019178,2]
[329189258,1718166636096,-510.58478061,0.00019178,2]
[329189259,1718166636112,-500.0,0.00019178,2]
[329189260,1718166636123,-500.0,0.00019178,2]
[329189261,1718166636144,-500.0,0.00019178,2]
[329189262,1718166636159,-500.0,0.00019178,2]
[329189263,1718166636184,-500.0,0.00019178,2]
[329189264,1718166636206,-500.0,0.00019178,2]
[329189265,1718166636228,-500.0,0.00019178,2]
[329189266,1718166636241,-500.0,0.00019178,2]
[329189267,1718166636251,-500.0,0.00019178,2]
[329189268,1718166636262,-500.0,0.00019178,2]
[329189269,1718166636277,-500.0,0.00019178,2]
[329189270,1718166636289,-500.0,0.00019178,2]
[329189271,1718166636302,-500.0,0.00019178,2]
[329189272,1718166636313,-904.03,0.00019178,2]
[329189273,1718166636327,-500.0,0.00019178,2]
[329189274,1718166636341,-500.0,0.00019178,2]
[329189275,1718166636354,-500.0,0.00019178,2]
[329189276,1718166636366,-500.0,0.00019178,2]
[329189277,1718166636382,-610.27,0.00019178,2]
[329189278,1718166636396,-1989.42,0.00019178,2]
[329189279,1718166636409,-500.0,0.00019178,2]
[329189280,1718166636422,-1052.51,0.00019178,2]
[329189281,1718166636433,-500.0,0.00019178,2]
[329189282,1718166636444,-857.75,0.00019178,2]
[329189283,1718166636455,-274.11983079,0.00019178,2]
[329189284,1718166636470,-500.0,0.00019178,2]
[329189285,1718166636480,-504.54957007,0.00019178,2]
[329189286,1718166636495,-500.0,0.00019178,2]
[329189287,1718166636509,-500.0,0.00019178,2]
[329189288,1718166636530,-528.03596901,0.00019178,2]
[329189289,1718166636541,-650.47,0.00019178,2]
[329189290,1718166636568,-500.0,0.00019178,2]
[329189291,1718166636584,-555.09,0.00019178,2]
[329189292,1718166636596,-754.16,0.00019178,2]
[329189293,1718166636609,-948.53,0.00019178,2]
[329189294,1718166636654,-500.0,0.00019178,2]
[329189295,1718166636669,-158.14821471,0.00019178,2]
[329189296,1718166636681,-500.0,0.00019178,2]
[329189297,1718166636694,-500.0,0.00019178,2]
[329189298,1718166636710,-278.12068941,0.00019178,2]
[329189299,1718166636737,-500.0,0.00019178,2]
[329189300,1718166636750,-644.8,0.00019178,2]
[329189301,1718166636764,-622.02,0.00019178,2]
[329189302,1718166636776,-500.0,0.00019178,2]
[329189303,1718166636787,-500.0,0.00019178,2]
[329189304,1718166636803,-500.0,0.00019178,2]
[329189305,1718166636815,-592.5,0.00019178,2]
[329189306,1718166636826,-500.0,0.00019178,2]
[329189307,1718166636838,-500.0,0.00019178,2]
[329189308,1718166636849,-730.31,0.00019178,2]
[329189309,1718166636860,-500.0,0.00019178,2]
[329189310,1718166636871,-500.0,0.00019178,2]
[329189311,1718166636882,-500.0,0.00019178,2]
[329189312,1718166636893,-500.0,0.00019178,2]
[329189313,1718166636904,-500.0,0.00019178,2]
[329189314,1718166636915,-393.34426609,0.00019178,2]
[329189315,1718166636926,-500.0,0.00019178,2]
[329189316,1718166636937,-500.0,0.00019178,2]
[329189317,1718166636948,-976.88,0.00019178,2]
[329189318,1718166636961,-611.05,0.00019178,2]
[329189319,1718166636972,-500.0,0.00019178,2]
[329189320,1718166636983,-500.0,0.00019178,2]
[329189321,1718166636994,-511.72304029,0.00019178,2]
[329189322,1718166637005,-500.0,0.00019178,2]
[329189323,1718166637017,-652.88,0.00019178,2]
[329189324,1718166637028,-519.59202068,0.00019178,2]
[329189325,1718166637038,-500.0,0.00019178,2]
[329189326,1718166637050,-620.47499398,0.00019178,2]
[329189327,1718166637060,-500.0,0.00019178,2]
[329189328,1718166637073,-500.0,0.00019178,2]
[329189329,1718166637084,-1279.4,0.00019178,2]
[329189330,1718166637095,-500.0,0.00019178,2]
[329189331,1718166637107,-500.0,0.00019178,2]
[329189332,1718166637121,-500.0,0.00019178,2]
[329189333,1718166637139,-500.0,0.00019178,2]
[329189334,1718166637153,-500.0,0.00019178,2]
[329189335,1718166637164,-500.0,0.00019178,2]
[329189336,1718166637176,-500.0,0.00019178,2]
[329189337,1718166637187,-500.0,0.00019178,2]
[329189338,1718166637199,-500.0,0.00019178,2]
[329189339,1718166637214,-930.93,0.00019178,2]
[329189340,1718166637225,-514.375506,0.00019178,2]
[329189341,1718166637236,-500.0,0.00019178,2]
[329189342,1718166637247,-500.0,0.00019178,2]
[329189343,1718166637260,-500.0,0.00019178,2]
[329189344,1718166637271,-1393.88,0.00019178,2]
[329189345,1718166637283,-500.0,0.00019178,2]
[329189346,1718166637294,-572.81,0.00019178,2]
[329189347,1718166637305,-519.8941825,0.00019178,2]
[329189348,1718166637317,-500.0,0.00019178,2]
[329189349,1718166637328,-1028.38,0.00019178,2]
[329189350,1718166637339,-500.0,0.00019178,2]
[329189351,1718166637349,-500.0,0.00019178,2]
[329189352,1718166637360,-500.0,0.00019178,2]
[329189353,1718166637372,-599.54,0.00019178,2]
[329189354,1718166637389,-500.0,0.00019178,2]
[329189355,1718166637400,-500.0,0.00019178,2]
[329189356,1718166637411,-4080.07,0.00019178,2]
[329189357,1718166637424,-500.0,0.00019178,2]
[329189358,1718166637434,-500.0,0.00019178,2]
[329189359,1718166637444,-546.67,0.00019178,2]
[329189360,1718166637455,-575.75,0.00019178,2]
[329189361,1718166637468,-285.43130738,0.00019178,2]
[329189362,1718166637480,-500.0,0.00019178,2]
[329189363,1718166637490,-500.0,0.00019178,2]
[329189364,1718166637500,-1198.46,0.00019178,2]
[329189365,1718166637512,-500.0,0.00019178,2]
[329189366,1718166637523,-854.06,0.00019178,2]
[329189367,1718166637534,-500.0,0.00019178,2]
[329189368,1718166637549,-507.9098765,0.00019178,2]
[329189369,1718166637561,-500.0,0.00019178,2]
[329189370,1718166637572,-500.0,0.00019178,2]
[329189371,1718166637582,-806.47,0.00019178,2]
[329189372,1718166637593,-655.63,0.00019178,2]
[329189373,1718166637605,-719.27,0.00019178,2]
[329189374,1718166637616,-500.0,0.00019178,2]
[329189375,1718166637653,-565.95,0.00019178,2]
[329189376,1718166637664,-529.29764482,0.00019178,2]
[329189377,1718166637676,-515.97544202,0.00019178,2]
[329189378,1718166637687,-542.89680515,0.00019178,2]
[329189379,1718166637698,-505.08356546,0.00019178,2]
[329189380,1718166637709,-516.43453167,0.00019178,2]
[329189381,1718166637721,-505.56038713,0.00019178,2]
[329189382,1718166637732,-500.0,0.00019178,2]
[329189383,1718166637756,-507.07,0.00019178,2]
[329189384,1718166637773,-506.98923018,0.00019178,2]
[329189385,1718166637784,-518.09117185,0.00019178,2]
[329189386,1718166637795,-500.0,0.00019178,2]
[329189387,1718166637808,-500.0,0.00019178,2]
[329189388,1718166637826,-506.03184095,0.00019178,2]
[329189389,1718166637837,-1094.68,0.00019178,2]
[329189390,1718166637850,-1642.13,0.00019178,2]
[329189391,1718166637861,-1480.46,0.00019178,2]
[329189392,1718166637871,-500.0,0.00019178,2]